[Event "Early-Titled-Tuesday-Blitz-February-27-2024"]
[Site "Chess.com"]
[Date "2024.02.27"]
[Round "9"]
[White "yuriydovzik"]
[Black "GoValya"]
[Result "0-1"]
[WhiteElo "2134"]
[BlackElo "2278"]
[TimeControl "180+1"]
[EndTime "9:43:06 PST"]
[Termination "GoValya won on time"]

1. a3 {[%clk 0:02:48.4]} 1... Nf6 {[%clk 0:02:59.1]} 2. b4 {[%clk 0:02:44.6]}
2... g6 {[%clk 0:02:58.4]} 3. Bb2 {[%clk 0:02:36]} 3... Bg7 {[%clk 0:02:53.1]}
4. g3 {[%clk 0:02:35]} 4... d5 {[%clk 0:02:53.1]} 5. Bg2 {[%clk 0:02:33.9]} 5...
c6 {[%clk 0:02:53.5]} 6. Nf3 {[%clk 0:02:31.6]} 6... O-O {[%clk 0:02:53.1]} 7.
O-O {[%clk 0:02:29.9]} 7... Nbd7 {[%clk 0:02:53.3]} 8. d3 {[%clk 0:02:27.8]}
8... Nb6 {[%clk 0:02:52.9]} 9. Nbd2 {[%clk 0:02:25.3]} 9... Na4 {[%clk
0:02:52.1]} 10. Bd4 {[%clk 0:02:04]} 10... b5 {[%clk 0:02:51.5]} 11. Nb3 {[%clk
0:01:48.3]} 11... Bg4 {[%clk 0:02:48.8]} 12. Qd2 {[%clk 0:01:40.1]} 12... Bxf3
{[%clk 0:02:47.7]} 13. Bxf3 {[%clk 0:01:36.5]} 13... Qc7 {[%clk 0:02:38.9]} 14.
Rac1 {[%clk 0:01:15.3]} 14... e5 {[%clk 0:02:36.3]} 15. Ba1 {[%clk 0:01:14.1]}
15... Rad8 {[%clk 0:02:20.3]} 16. c3 {[%clk 0:01:00.9]} 16... e4 {[%clk
0:02:18.2]} 17. Bg2 {[%clk 0:00:57.8]} 17... Ng4 {[%clk 0:02:07.9]} 18. e3
{[%clk 0:00:38.9]} 18... exd3 {[%clk 0:01:56.4]} 19. Nc5 {[%clk 0:00:28.2]}
19... Nxc5 {[%clk 0:01:53.2]} 20. bxc5 {[%clk 0:00:26.9]} 20... Ne5 {[%clk
0:01:51.9]} 21. f4 {[%clk 0:00:13.6]} 21... Nc4 {[%clk 0:01:51.4]} 22. Qxd3
{[%clk 0:00:13.6]} 22... Rfe8 {[%clk 0:01:51.6]} 23. Rce1 {[%clk 0:00:09.7]}
23... Nxa3 {[%clk 0:01:50.2]} 24. c4 {[%clk 0:00:06.4]} 24... Nxc4 {[%clk
0:01:47.9]} 25. Bxg7 {[%clk 0:00:05.1]} 25... Kxg7 {[%clk 0:01:48.8]} 26. Qd4+
{[%clk 0:00:04.5]} 26... Kg8 {[%clk 0:01:48.2]} 0-1

[Event "Early-Titled-Tuesday-Blitz-February-27-2024"]
[Site "Chess.com"]
[Date "2024.02.27"]
[Round "9"]
[White "Brahianzevich"]
[Black "TregubovP"]
[Result "0-1"]
[WhiteElo "2503"]
[BlackElo "2681"]
[TimeControl "180+1"]
[EndTime "9:43:09 PST"]
[Termination "TregubovP won by resignation"]

1. e4 {[%clk 0:02:57.5]} 1... c5 {[%clk 0:02:58]} 2. Nf3 {[%clk 0:02:57.3]} 2...
e6 {[%clk 0:02:57.7]} 3. Nc3 {[%clk 0:02:57.6]} 3... Nc6 {[%clk 0:02:56]} 4. d4
{[%clk 0:02:50.5]} 4... cxd4 {[%clk 0:02:55.5]} 5. Nxd4 {[%clk 0:02:51.4]} 5...
Nf6 {[%clk 0:02:55.7]} 6. Ndb5 {[%clk 0:02:44.8]} 6... Bb4 {[%clk 0:02:55.6]} 7.
a3 {[%clk 0:02:44.8]} 7... Bxc3+ {[%clk 0:02:56.1]} 8. Nxc3 {[%clk 0:02:45.7]}
8... d5 {[%clk 0:02:56.4]} 9. exd5 {[%clk 0:02:45.5]} 9... exd5 {[%clk
0:02:55.6]} 10. Bd3 {[%clk 0:02:44.6]} 10... O-O {[%clk 0:02:55.9]} 11. O-O
{[%clk 0:02:44.2]} 11... d4 {[%clk 0:02:56.4]} 12. Ne4 {[%clk 0:02:41.2]} 12...
Bf5 {[%clk 0:02:56.4]} 13. Bg5 {[%clk 0:02:28.1]} 13... Bxe4 {[%clk 0:02:56.3]}
14. Bxe4 {[%clk 0:02:29]} 14... h6 {[%clk 0:02:56.7]} 15. Bxf6 {[%clk
0:02:28.1]} 15... Qxf6 {[%clk 0:02:56.3]} 16. Re1 {[%clk 0:02:21.9]} 16... Rfd8
{[%clk 0:02:55.6]} 17. Qh5 {[%clk 0:02:07.5]} 17... Rac8 {[%clk 0:02:50.4]} 18.
Rad1 {[%clk 0:01:45.2]} 18... b6 {[%clk 0:02:50.2]} 19. Rd3 {[%clk 0:01:43.2]}
19... Ne5 {[%clk 0:02:42.2]} 20. Rg3 {[%clk 0:01:38.2]} 20... Re8 {[%clk
0:02:36]} 21. Kf1 {[%clk 0:01:10.4]} 21... Nc4 {[%clk 0:02:25.5]} 22. Re2 {[%clk
0:00:26]} 22... Rxe4 {[%clk 0:02:13.5]} 23. Rf3 {[%clk 0:00:21.8]} 23... Qe6
{[%clk 0:01:51.4]} 24. Rxe4 {[%clk 0:00:20.9]} 24... Nd2+ {[%clk 0:01:51.6]} 25.
Kg1 {[%clk 0:00:17.2]} 25... Qxe4 {[%clk 0:01:37.4]} 26. Qxf7+ {[%clk
0:00:12.8]} 26... Kh8 {[%clk 0:01:36.9]} 0-1

[Event "Early-Titled-Tuesday-Blitz-February-27-2024"]
[Site "Chess.com"]
[Date "2024.02.27"]
[Round "9"]
[White "1977Ivan"]
[Black "xasid81"]
[Result "0-1"]
[WhiteElo "2725"]
[BlackElo "2572"]
[TimeControl "180+1"]
[EndTime "9:43:20 PST"]
[Termination "xasid81 won by resignation"]

1. d4 {[%clk 0:03:00.9]} 1... d5 {[%clk 0:02:59.4]} 2. c4 {[%clk 0:03:00.9]}
2... c6 {[%clk 0:02:59.9]} 3. Nc3 {[%clk 0:03:00.7]} 3... Nf6 {[%clk 0:03:00.5]}
4. e3 {[%clk 0:03:01.1]} 4... e6 {[%clk 0:03:00.8]} 5. Bd3 {[%clk 0:03:00.1]}
5... Nbd7 {[%clk 0:03:01.3]} 6. b3 {[%clk 0:02:59.7]} 6... Be7 {[%clk
0:03:00.1]} 7. Bb2 {[%clk 0:02:58.9]} 7... O-O {[%clk 0:03:00.5]} 8. Nge2 {[%clk
0:02:52.3]} 8... b6 {[%clk 0:02:59.8]} 9. O-O {[%clk 0:02:51.7]} 9... Bb7 {[%clk
0:02:59.9]} 10. Ng3 {[%clk 0:02:51.4]} 10... c5 {[%clk 0:02:57.5]} 11. cxd5
{[%clk 0:02:48.2]} 11... cxd4 {[%clk 0:02:52.6]} 12. Nce4 {[%clk 0:02:45.8]}
12... dxe3 {[%clk 0:02:47]} 13. dxe6 {[%clk 0:02:43]} 13... fxe6 {[%clk
0:02:34.1]} 14. Ng5 {[%clk 0:02:21]} 14... Nc5 {[%clk 0:02:29.9]} 15. Bxf6
{[%clk 0:02:12.9]} 15... Bxf6 {[%clk 0:01:58.8]} 16. Bxh7+ {[%clk 0:01:39.4]}
16... Kh8 {[%clk 0:01:58.3]} 17. Nf7+ {[%clk 0:01:25.3]} 17... Rxf7 {[%clk
0:01:41.9]} 18. Qh5 {[%clk 0:01:25]} 18... Qd5 {[%clk 0:01:23.1]} 19. Bf5+
{[%clk 0:01:03.8]} 19... Kg8 {[%clk 0:01:22.3]} 20. Qh7+ {[%clk 0:00:57.3]}
20... Kf8 {[%clk 0:01:21.2]} 21. Bh3 {[%clk 0:00:48.4]} 21... Bxa1 {[%clk
0:01:03.4]} 22. fxe3 {[%clk 0:00:36.9]} 22... Rxf1+ {[%clk 0:00:59.1]} 23. Nxf1
{[%clk 0:00:37.8]} 23... Bf6 {[%clk 0:00:52.5]} 0-1

[Event "Early-Titled-Tuesday-Blitz-February-27-2024"]
[Site "Chess.com"]
[Date "2024.02.27"]
[Round "9"]
[White "1mbl4"]
[Black "NewBornNow"]
[Result "0-1"]
[WhiteElo "2614"]
[BlackElo "2874"]
[TimeControl "180+1"]
[EndTime "9:43:30 PST"]
[Termination "NewBornNow won by checkmate"]

1. e4 {[%clk 0:03:00.9]} 1... c5 {[%clk 0:02:51.6]} 2. Nf3 {[%clk 0:03:00.9]}
2... d6 {[%clk 0:02:51.6]} 3. Nc3 {[%clk 0:03:01.1]} 3... a6 {[%clk 0:02:49.6]}
4. d4 {[%clk 0:02:58.9]} 4... cxd4 {[%clk 0:02:49.3]} 5. Nxd4 {[%clk 0:02:59.8]}
5... Nf6 {[%clk 0:02:48.8]} 6. g3 {[%clk 0:03:00.4]} 6... e5 {[%clk 0:02:47.5]}
7. Nb3 {[%clk 0:02:55.8]} 7... Be7 {[%clk 0:02:47.1]} 8. Bg2 {[%clk 0:02:56]}
8... O-O {[%clk 0:02:46.8]} 9. O-O {[%clk 0:02:56.2]} 9... b5 {[%clk 0:02:46.3]}
10. Be3 {[%clk 0:02:55.6]} 10... Bb7 {[%clk 0:02:45]} 11. a4 {[%clk 0:02:55.3]}
11... b4 {[%clk 0:02:44.6]} 12. Nd5 {[%clk 0:02:55.7]} 12... Nxd5 {[%clk
0:02:41.8]} 13. exd5 {[%clk 0:02:56]} 13... a5 {[%clk 0:02:42]} 14. c4 {[%clk
0:02:51.3]} 14... bxc3 {[%clk 0:02:30]} 15. bxc3 {[%clk 0:02:52.2]} 15... Ba6
{[%clk 0:02:26.4]} 16. Re1 {[%clk 0:02:49.5]} 16... Nd7 {[%clk 0:02:26.3]} 17.
Rc1 {[%clk 0:02:44.7]} 17... Bc4 {[%clk 0:02:16.2]} 18. Nd2 {[%clk 0:02:38.8]}
18... Rc8 {[%clk 0:02:15.2]} 19. Nxc4 {[%clk 0:02:31.9]} 19... Rxc4 {[%clk
0:02:14.3]} 20. Bf1 {[%clk 0:02:32.3]} 20... Rc7 {[%clk 0:02:13.4]} 21. Bb5
{[%clk 0:02:30.1]} 21... Bg5 {[%clk 0:02:10.9]} 22. Bxd7 {[%clk 0:02:23.1]}
22... Bxe3 {[%clk 0:02:10.1]} 23. Rxe3 {[%clk 0:02:19.9]} 23... Qxd7 {[%clk
0:02:10]} 24. Qb3 {[%clk 0:01:57.5]} 24... Rb7 {[%clk 0:02:06.3]} 25. Qc2 {[%clk
0:01:50.1]} 25... Rc8 {[%clk 0:02:03.6]} 26. Re4 {[%clk 0:01:33.1]} 26... g6
{[%clk 0:02:02.8]} 27. Qd3 {[%clk 0:01:22.2]} 27... Rbc7 {[%clk 0:01:56.2]} 28.
Qa6 {[%clk 0:01:17.5]} 28... Rc5 {[%clk 0:01:49.5]} 29. Rd1 {[%clk 0:01:15]}
29... Qc7 {[%clk 0:01:42.3]} 30. Rb1 {[%clk 0:01:07]} 30... Rxd5 {[%clk
0:01:35.5]} 31. c4 {[%clk 0:00:59.2]} 31... Rc5 {[%clk 0:01:33.4]} 32. Rb7
{[%clk 0:00:58.8]} 32... Qc6 {[%clk 0:01:31.3]} 33. Qa7 {[%clk 0:00:53.6]} 33...
Rf8 {[%clk 0:01:21.6]} 34. Rh4 {[%clk 0:00:48.4]} 34... Rxc4 {[%clk 0:01:17.8]}
35. Re7 {[%clk 0:00:34.4]} 35... Rc1# {[%clk 0:01:16.2]} 0-1

[Event "Early-Titled-Tuesday-Blitz-February-27-2024"]
[Site "Chess.com"]
[Date "2024.02.27"]
[Round "9"]
[White "NovakRatko"]
[Black "rhungaski"]
[Result "0-1"]
[WhiteElo "2475"]
[BlackElo "2593"]
[TimeControl "180+1"]
[EndTime "9:43:33 PST"]
[Termination "rhungaski won on time"]

1. d4 {[%clk 0:02:46.7]} 1... Nf6 {[%clk 0:02:57.9]} 2. c4 {[%clk 0:02:46.9]}
2... e5 {[%clk 0:02:56.2]} 3. dxe5 {[%clk 0:02:46.6]} 3... Ng4 {[%clk
0:02:55.5]} 4. Nf3 {[%clk 0:02:45.6]} 4... Bc5 {[%clk 0:02:53.8]} 5. e3 {[%clk
0:02:45.2]} 5... Nc6 {[%clk 0:02:53.7]} 6. Be2 {[%clk 0:02:45.3]} 6... O-O
{[%clk 0:02:48.1]} 7. a3 {[%clk 0:02:45.5]} 7... a5 {[%clk 0:02:46.3]} 8. Nc3
{[%clk 0:02:45.6]} 8... Ncxe5 {[%clk 0:02:31.1]} 9. Nxe5 {[%clk 0:02:44.8]} 9...
Nxe5 {[%clk 0:02:30.5]} 10. Rb1 {[%clk 0:02:45.4]} 10... Re8 {[%clk 0:02:27.3]}
11. b4 {[%clk 0:02:44.5]} 11... axb4 {[%clk 0:02:26.7]} 12. axb4 {[%clk
0:02:43.8]} 12... Ba7 {[%clk 0:02:21.5]} 13. Ra1 {[%clk 0:02:41.2]} 13... c6
{[%clk 0:02:11.6]} 14. c5 {[%clk 0:02:28.9]} 14... d5 {[%clk 0:02:09.4]} 15.
cxd6 {[%clk 0:02:21.7]} 15... Qh4 {[%clk 0:02:07.2]} 16. Bd2 {[%clk 0:01:36.4]}
16... Re6 {[%clk 0:01:45.4]} 17. b5 {[%clk 0:01:05]} 17... Rxd6 {[%clk
0:01:25.2]} 18. b6 {[%clk 0:00:59.6]} 18... Bg4 {[%clk 0:01:10.1]} 19. Bxg4
{[%clk 0:00:16.2]} 19... Nd3+ {[%clk 0:01:05.4]} 0-1

[Event "Early-Titled-Tuesday-Blitz-February-27-2024"]
[Site "Chess.com"]
[Date "2024.02.27"]
[Round "9"]
[White "viktorgen2021"]
[Black "Grandmaster1369"]
[Result "0-1"]
[WhiteElo "2522"]
[BlackElo "2758"]
[TimeControl "180+1"]
[EndTime "9:43:38 PST"]
[Termination "Grandmaster1369 won by resignation"]

1. d4 {[%clk 0:02:53.7]} 1... Nf6 {[%clk 0:02:59.5]} 2. Nf3 {[%clk 0:02:53.1]}
2... e6 {[%clk 0:02:58.7]} 3. g3 {[%clk 0:02:49.9]} 3... d5 {[%clk 0:02:53.2]}
4. c4 {[%clk 0:02:49.5]} 4... Bb4+ {[%clk 0:02:46.2]} 5. Bd2 {[%clk 0:02:49]}
5... Qe7 {[%clk 0:02:37.1]} 6. Bg2 {[%clk 0:02:48]} 6... Ne4 {[%clk 0:02:29.5]}
7. O-O {[%clk 0:02:46.6]} 7... Nxd2 {[%clk 0:02:27.9]} 8. Nbxd2 {[%clk
0:02:46.4]} 8... c6 {[%clk 0:02:26.4]} 9. e4 {[%clk 0:02:44.6]} 9... O-O {[%clk
0:02:20.6]} 10. a3 {[%clk 0:02:40.6]} 10... Bd6 {[%clk 0:02:19.7]} 11. exd5
{[%clk 0:02:33.7]} 11... exd5 {[%clk 0:02:14.5]} 12. cxd5 {[%clk 0:02:33.8]}
12... cxd5 {[%clk 0:02:15.4]} 13. Re1 {[%clk 0:02:34.1]} 13... Qf6 {[%clk
0:02:12.6]} 14. Ne5 {[%clk 0:02:34]} 14... Nc6 {[%clk 0:02:06.1]} 15. Ndf3
{[%clk 0:02:28.8]} 15... Bf5 {[%clk 0:02:00]} 16. Nxc6 {[%clk 0:02:26.9]} 16...
bxc6 {[%clk 0:01:59.9]} 17. Ne5 {[%clk 0:02:27.4]} 17... Rac8 {[%clk 0:01:58.8]}
18. Rc1 {[%clk 0:01:58]} 18... c5 {[%clk 0:01:09.5]} 19. Nf3 {[%clk 0:01:10.7]}
19... Be4 {[%clk 0:01:04.2]} 20. dxc5 {[%clk 0:00:56.2]} 20... Bxc5 {[%clk
0:01:05.1]} 21. b4 {[%clk 0:00:56.3]} 21... Bb6 {[%clk 0:01:04.8]} 22. Qb3
{[%clk 0:00:47.7]} 22... g5 {[%clk 0:00:58.1]} 23. Rxc8 {[%clk 0:00:33.5]} 23...
Rxc8 {[%clk 0:00:59]} 24. Rf1 {[%clk 0:00:31.1]} 24... Rc3 {[%clk 0:00:58.3]}
25. Qb2 {[%clk 0:00:20.3]} 25... Rxf3 {[%clk 0:00:57.9]} 0-1

[Event "Early-Titled-Tuesday-Blitz-February-27-2024"]
[Site "Chess.com"]
[Date "2024.02.27"]
[Round "9"]
[White "stollenmonster"]
[Black "124chess"]
[Result "1-0"]
[WhiteElo "2888"]
[BlackElo "2561"]
[TimeControl "180+1"]
[EndTime "9:43:42 PST"]
[Termination "stollenmonster won by resignation"]

1. e4 {[%clk 0:03:00.9]} 1... d5 {[%clk 0:02:59.5]} 2. Nc3 {[%clk 0:03:00.3]}
2... dxe4 {[%clk 0:02:59.5]} 3. Nxe4 {[%clk 0:03:01.2]} 3... Qd5 {[%clk
0:03:00.2]} 4. Nc3 {[%clk 0:03:00.9]} 4... Qd6 {[%clk 0:03:00.4]} 5. g3 {[%clk
0:03:00.9]} 5... Nf6 {[%clk 0:03:00.6]} 6. Bg2 {[%clk 0:03:01.5]} 6... c6 {[%clk
0:03:01.3]} 7. Nge2 {[%clk 0:03:00.6]} 7... Bf5 {[%clk 0:03:01.9]} 8. O-O {[%clk
0:02:58]} 8... e6 {[%clk 0:03:02.4]} 9. d4 {[%clk 0:02:57.8]} 9... Be7 {[%clk
0:03:02.5]} 10. h3 {[%clk 0:02:56.8]} 10... O-O {[%clk 0:03:02.3]} 11. Nf4
{[%clk 0:02:57.2]} 11... h6 {[%clk 0:03:01.2]} 12. Be3 {[%clk 0:02:54.6]} 12...
Nbd7 {[%clk 0:03:01]} 13. Nd3 {[%clk 0:02:52.5]} 13... Nd5 {[%clk 0:03:00.1]}
14. Nxd5 {[%clk 0:02:48.6]} 14... cxd5 {[%clk 0:03:01]} 15. c3 {[%clk
0:02:47.9]} 15... Qb6 {[%clk 0:02:57.1]} 16. Qd2 {[%clk 0:02:24.2]} 16... Nf6
{[%clk 0:02:55.4]} 17. Nc5 {[%clk 0:02:21.9]} 17... Qc6 {[%clk 0:02:49.9]} 18.
Bf4 {[%clk 0:02:21.9]} 18... b6 {[%clk 0:02:49.2]} 19. Nd3 {[%clk 0:02:21.5]}
19... Ne4 {[%clk 0:02:48]} 20. Qe2 {[%clk 0:02:17.3]} 20... Qb5 {[%clk
0:02:45.2]} 21. Rfd1 {[%clk 0:02:17.5]} 21... Rac8 {[%clk 0:02:43.2]} 22. Rac1
{[%clk 0:02:11.5]} 22... a5 {[%clk 0:02:42.1]} 23. h4 {[%clk 0:02:05.8]} 23...
a4 {[%clk 0:02:41.9]} 24. a3 {[%clk 0:02:05.1]} 24... Bh7 {[%clk 0:02:36.8]} 25.
Bf1 {[%clk 0:02:04.3]} 25... Bf6 {[%clk 0:02:30.6]} 26. Qe3 {[%clk 0:02:02.5]}
26... Qd7 {[%clk 0:02:28.9]} 27. Ne5 {[%clk 0:01:58]} 27... Bxe5 {[%clk
0:02:25.2]} 28. dxe5 {[%clk 0:01:57.2]} 28... Nc5 {[%clk 0:02:23.1]} 29. Rd4
{[%clk 0:01:40.1]} 29... Nb3 {[%clk 0:02:20.4]} 30. Rcd1 {[%clk 0:01:40.3]}
30... Nxd4 {[%clk 0:02:20.4]} 31. Rxd4 {[%clk 0:01:41.2]} 31... Qc6 {[%clk
0:02:10.6]} 32. Bxh6 {[%clk 0:01:38.3]} 32... gxh6 {[%clk 0:01:54]} 33. Qxh6
{[%clk 0:01:39.2]} 33... Qc7 {[%clk 0:01:03.2]} 34. Rg4+ {[%clk 0:01:13.5]}
34... Bg6 {[%clk 0:01:03.2]} 35. h5 {[%clk 0:01:14.2]} 35... Qxe5 {[%clk
0:00:36.8]} 36. hxg6 {[%clk 0:01:13.3]} 36... Qh8 {[%clk 0:00:37.5]} 37. Qxh8+
{[%clk 0:01:03.8]} 37... Kxh8 {[%clk 0:00:38.4]} 38. g7+ {[%clk 0:01:04.6]}
38... Kg8 {[%clk 0:00:39]} 39. gxf8=Q+ {[%clk 0:01:05.5]} 39... Kxf8 {[%clk
0:00:39.9]} 40. Rxa4 {[%clk 0:01:05.6]} 1-0

[Event "Early-Titled-Tuesday-Blitz-February-27-2024"]
[Site "Chess.com"]
[Date "2024.02.27"]
[Round "9"]
[White "koncheto"]
[Black "ValeriyGrinev"]
[Result "0-1"]
[WhiteElo "2462"]
[BlackElo "2585"]
[TimeControl "180+1"]
[EndTime "9:43:44 PST"]
[Termination "ValeriyGrinev won by resignation"]

1. e4 {[%clk 0:03:00.9]} 1... c5 {[%clk 0:03:00.4]} 2. Nf3 {[%clk 0:02:59.8]}
2... Nc6 {[%clk 0:02:59.8]} 3. d4 {[%clk 0:03:00.4]} 3... cxd4 {[%clk
0:03:00.3]} 4. Nxd4 {[%clk 0:03:01.3]} 4... e5 {[%clk 0:03:01]} 5. Nb5 {[%clk
0:03:01]} 5... d6 {[%clk 0:03:01]} 6. c4 {[%clk 0:02:59.6]} 6... a6 {[%clk
0:03:00.8]} 7. N5a3 {[%clk 0:02:59.8]} 7... Nf6 {[%clk 0:03:01.4]} 8. Nc3 {[%clk
0:02:59.4]} 8... Be7 {[%clk 0:03:01.7]} 9. Be2 {[%clk 0:02:59.4]} 9... O-O
{[%clk 0:03:01.9]} 10. O-O {[%clk 0:02:57.6]} 10... Be6 {[%clk 0:03:02]} 11. Be3
{[%clk 0:02:57.2]} 11... Rc8 {[%clk 0:03:02.2]} 12. Qd2 {[%clk 0:02:57.2]} 12...
h6 {[%clk 0:02:58.4]} 13. Nc2 {[%clk 0:02:44.6]} 13... Ng4 {[%clk 0:02:56.9]}
14. Bxg4 {[%clk 0:02:43]} 14... Bxg4 {[%clk 0:02:57.8]} 15. Rac1 {[%clk
0:02:35.9]} 15... Be6 {[%clk 0:02:57]} 16. b3 {[%clk 0:02:33.1]} 16... f5 {[%clk
0:02:56.8]} 17. exf5 {[%clk 0:02:20.7]} 17... Bxf5 {[%clk 0:02:57.7]} 18. f4
{[%clk 0:02:18.6]} 18... Bf6 {[%clk 0:02:45.9]} 19. Nd5 {[%clk 0:02:09.8]} 19...
exf4 {[%clk 0:02:34.1]} 20. Nxf6+ {[%clk 0:01:47.5]} 20... Qxf6 {[%clk
0:02:29.4]} 21. Rxf4 {[%clk 0:01:24]} 21... Qg6 {[%clk 0:02:29]} 22. Nd4 {[%clk
0:01:15.2]} 22... Nxd4 {[%clk 0:02:25.7]} 23. Qxd4 {[%clk 0:00:56.3]} 23... Bd7
{[%clk 0:02:16.5]} 24. Rd1 {[%clk 0:00:39.3]} 24... Bc6 {[%clk 0:02:11.2]} 25.
Rg4 {[%clk 0:00:39.4]} 25... Qf6 {[%clk 0:02:05.2]} 26. Qxf6 {[%clk 0:00:16.9]}
26... Rxf6 {[%clk 0:02:04.1]} 27. Rgd4 {[%clk 0:00:16.9]} 27... Re8 {[%clk
0:02:00.7]} 28. Bf2 {[%clk 0:00:14.5]} 28... Re2 {[%clk 0:01:59.7]} 29. Rf1
{[%clk 0:00:06.2]} 29... Rxa2 {[%clk 0:01:55.5]} 30. b4 {[%clk 0:00:05.9]} 30...
Rb2 {[%clk 0:01:53.1]} 31. c5 {[%clk 0:00:05.5]} 31... dxc5 {[%clk 0:01:49.6]}
32. bxc5 {[%clk 0:00:06]} 32... Rc2 {[%clk 0:01:49]} 33. h3 {[%clk 0:00:05.3]}
33... Kh7 {[%clk 0:01:48.2]} 34. Rb4 {[%clk 0:00:04.7]} 34... Rg6 {[%clk
0:01:43.9]} 35. g4 {[%clk 0:00:03.8]} 35... Rf6 {[%clk 0:01:36]} 36. Rd4 {[%clk
0:00:03.4]} 36... Rf3 {[%clk 0:01:34.1]} 37. h4 {[%clk 0:00:03.7]} 37... Rh3
{[%clk 0:01:33.2]} 0-1

[Event "Early-Titled-Tuesday-Blitz-February-27-2024"]
[Site "Chess.com"]
[Date "2024.02.27"]
[Round "9"]
[White "kingofthenil"]
[Black "Practical-Play"]
[Result "1-0"]
[WhiteElo "2747"]
[BlackElo "2582"]
[TimeControl "180+1"]
[EndTime "9:43:48 PST"]
[Termination "kingofthenil won by resignation"]

1. Nf3 {[%clk 0:02:47.4]} 1... c5 {[%clk 0:02:58.6]} 2. g3 {[%clk 0:02:48.3]}
2... Nc6 {[%clk 0:02:58.5]} 3. Bg2 {[%clk 0:02:29.9]} 3... e5 {[%clk 0:02:55.3]}
4. e4 {[%clk 0:02:29.2]} 4... Nf6 {[%clk 0:02:52.7]} 5. O-O {[%clk 0:02:28.5]}
5... d6 {[%clk 0:02:46.1]} 6. Re1 {[%clk 0:02:26.4]} 6... g6 {[%clk 0:02:43.8]}
7. c3 {[%clk 0:02:26.1]} 7... Bg4 {[%clk 0:02:26.4]} 8. h3 {[%clk 0:02:25.7]}
8... Bd7 {[%clk 0:02:07.9]} 9. d4 {[%clk 0:02:24.4]} 9... cxd4 {[%clk
0:02:00.3]} 10. cxd4 {[%clk 0:02:25.3]} 10... exd4 {[%clk 0:01:57]} 11. Nxd4
{[%clk 0:02:23.2]} 11... Bg7 {[%clk 0:01:57.6]} 12. Nb5 {[%clk 0:02:23.1]} 12...
O-O {[%clk 0:01:55.5]} 13. Nxd6 {[%clk 0:02:24]} 13... Be6 {[%clk 0:01:30.9]}
14. Nc3 {[%clk 0:02:10]} 14... Qb6 {[%clk 0:01:18]} 15. Na4 {[%clk 0:02:04]}
15... Qc7 {[%clk 0:01:08.1]} 16. e5 {[%clk 0:01:56.5]} 16... Nxe5 {[%clk
0:00:48.9]} 17. Bf4 {[%clk 0:01:56.4]} 17... Nfd7 {[%clk 0:00:44.7]} 18. Rc1
{[%clk 0:01:53.5]} 18... Qa5 {[%clk 0:00:31.2]} 19. Nxb7 {[%clk 0:01:52.4]}
19... Qb5 {[%clk 0:00:27.6]} 20. Nd6 {[%clk 0:01:50.5]} 20... Qa5 {[%clk
0:00:23.1]} 21. a3 {[%clk 0:01:42.5]} 21... Rab8 {[%clk 0:00:21.3]} 22. b4
{[%clk 0:01:42.6]} 22... Qd8 {[%clk 0:00:21.8]} 23. Nc5 {[%clk 0:01:40.8]} 23...
Nxc5 {[%clk 0:00:21.2]} 24. bxc5 {[%clk 0:01:41.3]} 24... f6 {[%clk 0:00:09]}
25. c6 {[%clk 0:01:41.1]} 25... Qc7 {[%clk 0:00:08.4]} 26. Ne4 {[%clk
0:01:26.1]} 26... Rfd8 {[%clk 0:00:08.3]} 27. Qa4 {[%clk 0:01:24.4]} 27... Rb6
{[%clk 0:00:07.8]} 28. Nc5 {[%clk 0:01:24.4]} 28... Bd5 {[%clk 0:00:06.6]} 29.
Na6 {[%clk 0:01:24.1]} 29... Qc8 {[%clk 0:00:06.2]} 30. c7 {[%clk 0:01:24.8]}
30... Rdd6 {[%clk 0:00:04.1]} 31. Bxe5 {[%clk 0:01:20.5]} 31... fxe5 {[%clk
0:00:04]} 32. Bxd5+ {[%clk 0:01:19.4]} 32... Rxd5 {[%clk 0:00:04.9]} 33. Nb4
{[%clk 0:01:19.8]} 33... Rd7 {[%clk 0:00:03.5]} 34. Qxd7 {[%clk 0:01:19.9]} 1-0

[Event "Early-Titled-Tuesday-Blitz-February-27-2024"]
[Site "Chess.com"]
[Date "2024.02.27"]
[Round "9"]
[White "leclash"]
[Black "ImportedItalianMaple"]
[Result "1-0"]
[WhiteElo "2434"]
[BlackElo "2538"]
[TimeControl "180+1"]
[EndTime "9:43:50 PST"]
[Termination "leclash won by checkmate"]

1. d4 {[%clk 0:03:00.9]} 1... g6 {[%clk 0:02:59.6]} 2. c4 {[%clk 0:03:00.6]}
2... Bg7 {[%clk 0:02:59.9]} 3. e4 {[%clk 0:03:01.2]} 3... c6 {[%clk 0:02:58.2]}
4. Nc3 {[%clk 0:02:59.8]} 4... d5 {[%clk 0:02:58.4]} 5. cxd5 {[%clk 0:02:27.5]}
5... cxd5 {[%clk 0:02:57.9]} 6. e5 {[%clk 0:02:28]} 6... Nc6 {[%clk 0:02:56]} 7.
Nf3 {[%clk 0:02:25.3]} 7... Bg4 {[%clk 0:02:54.4]} 8. Be2 {[%clk 0:02:24.9]}
8... f6 {[%clk 0:02:40.6]} 9. O-O {[%clk 0:02:22.1]} 9... fxe5 {[%clk
0:02:15.3]} 10. Nxe5 {[%clk 0:02:21]} 10... Bxe2 {[%clk 0:02:07.6]} 11. Nxc6
{[%clk 0:02:17.9]} 11... Bxd1 {[%clk 0:01:52.7]} 12. Nxd8 {[%clk 0:02:17.7]}
12... Rxd8 {[%clk 0:01:51]} 13. Rxd1 {[%clk 0:02:16.5]} 13... Nf6 {[%clk
0:01:51.2]} 14. Bf4 {[%clk 0:02:09]} 14... Kf7 {[%clk 0:01:45.1]} 15. Be5 {[%clk
0:02:05.9]} 15... a6 {[%clk 0:01:08.9]} 16. Rac1 {[%clk 0:01:58.2]} 16... e6
{[%clk 0:01:00.1]} 17. f3 {[%clk 0:01:54.2]} 17... Rc8 {[%clk 0:00:59]} 18. Na4
{[%clk 0:01:53.5]} 18... Nd7 {[%clk 0:00:54.2]} 19. Bxg7 {[%clk 0:01:51.4]}
19... Kxg7 {[%clk 0:00:55.1]} 20. Kf2 {[%clk 0:01:43.6]} 20... Kf7 {[%clk
0:00:53.8]} 21. b4 {[%clk 0:01:25.5]} 21... Ke7 {[%clk 0:00:20]} 22. Ke3 {[%clk
0:01:21.2]} 22... Kd6 {[%clk 0:00:15.3]} 23. Nc5 {[%clk 0:01:20.5]} 23... Nxc5
{[%clk 0:00:15.8]} 24. bxc5+ {[%clk 0:01:17.6]} 24... Kc6 {[%clk 0:00:15.9]} 25.
Rb1 {[%clk 0:01:16.7]} 25... Rc7 {[%clk 0:00:15.7]} 26. Rb6+ {[%clk 0:01:15.5]}
26... Kd7 {[%clk 0:00:16.3]} 27. Rdb1 {[%clk 0:01:15.2]} 27... Rb8 {[%clk
0:00:14.1]} 28. Rd6+ {[%clk 0:01:14.5]} 28... Ke7 {[%clk 0:00:14.8]} 29. Rbb6
{[%clk 0:01:14.2]} 29... Kf7 {[%clk 0:00:14.1]} 30. Rxe6 {[%clk 0:01:13.2]}
30... Rd7 {[%clk 0:00:11.3]} 31. Rbd6 {[%clk 0:01:10.2]} 31... Rbd8 {[%clk
0:00:10.6]} 32. Rf6+ {[%clk 0:01:06]} 32... Ke7 {[%clk 0:00:10.2]} 33. Rde6#
{[%clk 0:01:05.6]} 1-0